Cogmind - Beta 16 @@@ ROGUE MODE // 2025.11.20 @ 15:21:57 Player: Decree0327 Result: Destroyed by P-70 Sage with High-powered Shock Rifle Performance ------------- Evolutions (6) 3000 Regions Visited (11) 2200 Robots Destroyed (78) 390 Value Destroyed (2448) 2448 Prototype IDs (7) 140 Alien Tech Used (0) 0 Bonus (700) 700 TOTAL SCORE: 8878 Bonus ------- Entered Garrisons 200 Used RIF Installer 500 Cogmind --------- Core Integrity 0/1150 Matter 118/300 Energy 7/170 System Corruption 3% Temperature Cool (2) Movement Flying (272) Ox3 Location -4/Factory Parts ------- > --- POWER (2) -------- Light Antimatter Reactor > --- PROPULSION (5) --- Improved Gyrokinetic Inverter VTOL Module VTOL Module > --- UTILITY (8) ------ Advanced Sensor Array Shock Absorption System Shock Absorption System Shock Absorption System Advanced EM Disruption Field (fused) Improved Remote Shield > --- WEAPON (4) ------- (None) > --- INVENTORY (5) ---- Light Nuclear Core Angular Momentum Engine Peak State ------------ > --- POWER ------------ Light Nuclear Core Fission Core > --- PROPULSION ------- Improved Cesium-ion Thruster Improved Cesium-ion Thruster Improved Cesium-ion Thruster Cooled Cesium-ion Thruster Biomechanical Wings > --- UTILITY ---------- Weight Redist. System Visual Processing Unit Advanced Sensor Array Improved Signal Interpreter Transmission Jammer Improved Shock Absorption System > --- WEAPON ----------- Mini Smartbomb Launcher Mini Smartbomb Launcher Improved Remote Datajack Blade Saw > --- INVENTORY -------- Light Nuclear Core Improved Cesium-ion Thruster Improved Kinecellerator Improved Medium Armor Plating Improved Focal Shield [Rating: 82] Favorites ----------- Power Micro Nuclear Core Engine Heavy Ion Engine Power Core Micro Nuclear Core Reactor Light Antimatter Reactor Propulsion Improved Cesium-ion Thruster Treads Light Treads Leg Aluminum Leg Hover Unit Improved Gyrokinetic Inverter Flight Unit Improved Cesium-ion Thruster Utility Medium Storage Unit Device Terrain Scanner Storage Medium Storage Unit Processor Improved Signal Interpreter Hackware System Shield Protection Improved Light Armor Plating Weapon Advanced Assault Cannon Energy Gun Medium Laser Energy Cannon Heavy Ion Cannon Ballistic Gun Heavy Assault Rifle Ballistic Cannon Advanced Assault Cannon Launcher Mini Smartbomb Launcher Special Weapon Improved Remote Datajack Impact Weapon Mace Slashing Weapon Blade Saw Special Melee Weapon Datajack Build | -11 -10 -9 -8 -7 -7 -7 -6 -5 -5 -5 -4 ------- Run | Yrd Mat Mat Mat Fac Gar Fac Fac Fac Upp Upp Fac Slots Evolved 12 | . . 2 2 2 . . 2 2 . . 2 Power 1 | . . . . . . . 1 . . . . Propulsion 3 | . . . 1 1 . . . 1 . . . Utility 6 | . . 2 . . . . 1 1 . . 2 Weapon 2 | . . . 1 1 . . . . . . . Parts Attached 112 | 7 3 3 19 18 6 19 5 8 3 3 18 Power 16 | 1 1 . 3 4 . 2 1 . . 1 3 Engine 5 | 1 . . 2 1 . . . . . 1 . Core 9 | . 1 . 1 3 . 2 1 . . . 1 Reactor 2 | . . . . . . . . . . . 2 Propulsion 32 | 2 . . 7 4 3 4 2 1 1 1 7 Treads 2 | . . . 1 . 1 . . . . . . Leg 15 | 2 . . 6 4 2 . . . . . 1 Wheel . | . . . . . . . . . . . . Hover 2 | . . . . . . . . . . . 2 Flight 13 | . . . . . . 4 2 1 1 1 4 Utility 34 | 2 2 1 1 5 1 7 2 4 1 1 7 Device 24 | 1 1 1 1 3 . 4 2 3 1 . 7 Storage 4 | 1 1 . . 1 . 1 . . . . . Processor 2 | . . . . 1 . 1 . . . . . Hackware 2 | . . . . . . . . 1 . 1 . Protection 2 | . . . . . 1 1 . . . . . Artifact . | . . . . . . . . . . . . Weapon 30 | 2 . 2 8 5 2 6 . 3 1 . 1 Energy Gun 7 | 1 . . 1 3 . 2 . . . . . Energy Cannon 1 | . . . . 1 . . . . . . . Ballistic Gun 5 | 1 . . 2 . 1 1 . . . . . Ballistic Cannon 4 | . . 1 3 . . . . . . . . Launcher 4 | . . 1 . 1 . . . 2 . . . Special Weapon 1 | . . . . . . . . 1 . . . Impact Weapon 1 | . . . . . 1 . . . . . . Slashing Weapon 3 | . . . . . . 2 . . 1 . . Piercing Weapon . | . . . . . . . . . . . . Special Melee Weapon 4 | . . . 2 . . 1 . . . . 1 Unidentified Prototypes 7 | . . . 1 . . 2 2 2 . . . Parts Lost 56 | . 1 1 13 2 16 1 . 4 . 9 9 Power 5 | . . . . . 1 1 . 1 . 1 1 Propulsion 20 | . . . 6 . 5 . . 1 . 4 4 Utility 14 | . 1 . 3 . 3 . . 2 . 3 2 Weapon 17 | . . 1 4 2 7 . . . . 1 2 Highest Loss Streak 8 | . 1 1 3 2 8 1 . 4 . 5 5 To Critical Strikes 3 | . . . 1 . 1 . . 1 . . . Average Backups 7 | 2 8 9 9 8 9 4 4 4 3 4 3 Power 1 | . 1 1 1 3 2 1 . . . 1 1 Propulsion 1 | 2 1 1 . . 1 1 2 1 1 . . Utility 3 | . 4 4 5 3 3 2 1 2 2 1 . Weapon 1 | . . 2 1 1 . . . . . 1 . Tool/Special . | . . . . . . . . . . . . Unused Backups 24 | . 3 3 2 1 3 4 1 7 . . . Power 1 | . 1 . . . . . . . . . . Propulsion 6 | . 2 . . . 1 3 . . . . . Utility 15 | . . 2 2 . 2 1 1 7 . . . Weapon 2 | . . 1 . 1 . . . . . . . Tool/Special . | . . . . . . . . . . . . Average Slot Usage (%) 84 | . 99 99 90 76 78 62 99 98 96 71 12 Engine 1 | . 3 . 2 . . 2 . . . . . Core 7 | . 10 11 6 7 6 1 13 10 11 8 . Treads 1 | . . . 4 . . . . . . . . Leg 12 | . 28 22 18 13 23 . . . . . . Flight 7 | . . . . . . 18 26 28 28 18 3 Device 14 | . 13 21 14 13 2 9 16 22 17 12 3 Storage 10 | . 14 22 18 7 13 3 2 . . . . Processor 4 | . . . . 6 7 8 13 11 11 7 . Energy Gun 3 | . 14 9 2 . 9 3 6 1 . . . Ballistic Gun 3 | . 14 3 3 4 3 1 6 1 . . . Ballistic Cannon 6 | . . 1 12 13 . . . . . . . Launcher 3 | . . 7 2 2 1 . . 7 11 6 . Slashing Weapon 1 | . . . . . . 3 6 4 5 4 . Special Melee Weapon 1 | . . . 4 . . 6 6 . . . . Peak Build Rating 82 | 9 10 13 30 45 44 49 62 82 79 80 49 Average Rating 35 | 6 9 12 23 33 33 31 59 78 75 56 14 On Entrance 29 | . 9 10 13 18 44 4 47 62 69 79 2 Avg Prop Armor Cover (%) 8 | . . . 7 . 7 21 . . . . 12 Naked Turns 126 | . . . . . . . . . . 28 98 Heaviest Build 47 | 14 19 29 40 47 36 20 30 36 31 31 31 Greatest Support 68 | 20 20 20 32 68 68 24 30 36 37 37 12 Greatest Overweight (x) 12 | 1 . 1 11 12 1 1 . . . 2 3 Average Overweight (x) . | . . 1 1 2 . . . . . . . Largest Inventory Capacity 10 | 8 10 10 10 10 10 5 5 5 5 5 5 Average Capacity 8 | 7 9 10 10 10 9 5 5 5 5 5 5 Most Carried 10 | 5 10 10 10 10 10 5 5 5 5 5 5 Average Carried 7 | 2 8 9 9 8 9 4 4 4 3 4 3 Final Capacity 10 | 8 10 10 10 10 5 5 5 5 5 5 5 Final Carried 10 | 5 10 10 9 10 5 5 5 5 5 5 2 Class Distribution -------------------- 42% | Mutant 25% | Skirmisher 10% | Sprinter 7% | Ninja 5% | Infiltrator-Ninja 4% | Gunner Dominant Class ---------------- Mutant | -10/Materials Mutant | -9/Materials Mutant | -8/Materials Skirmisher | -7/Factory Mutant | -7/Garrison Sprinter | -7/Factory Scout | -6/Factory Ninja | -5/Factory Sprinter | -5/Upper Caves Mutant | -5/Upper Caves Mutant | -4/Factory Resources | -11 -10 -9 -8 -7 -7 -7 -6 -5 -5 -5 -4 ----------- Run | Yrd Mat Mat Mat Fac Gar Fac Fac Fac Upp Upp Fac Matter Collected 2753 | 289 207 153 1059 249 290 113 . 32 166 . 195 Remotely . | . . . . . . . . . . . . Salvage Created 2220 | 149 214 220 802 286 379 113 . 57 . . . Parts 142 | 10 12 17 51 20 16 9 . 7 . . . Haulers Intercepted . | . . . . . . . . . . . . Recyclers Shooed 4 | . 2 . 2 . . . . . . . . Parts Field Recycled . | . . . . . . . . . . . . Retrieved Matter . | . . . . . . . . . . . . Parts Self-Destructed 8 | . . . . . . . . . 5 3 . Prevented 3 | . . . . . . . . . . 3 . Parts Restored . | . . . . . . . . . . . . Kills | -11 -10 -9 -8 -7 -7 -7 -6 -5 -5 -5 -4 ------- Run | Yrd Mat Mat Mat Fac Gar Fac Fac Fac Upp Upp Fac Combat Hostiles Destroyed 54 | . 4 10 23 8 6 3 . . . . . Guns 16 | . 4 . 4 . 5 3 . . . . . Cannons 15 | . . . 10 5 . . . . . . . AOE 23 | . . 10 9 3 1 . . . . . . Classes Destroyed 12 | 3 2 2 3 2 . . . . . . . Worker 5 | 2 . . 3 . . . . . . . . Builder 2 | . . . . 2 . . . . . . . Tunneler 5 | 3 . . . . . . . 2 . . . Recycler 5 | 1 . 1 2 1 . . . . . . . Operator 3 | . . . 2 . . . . 1 . . . Watcher 4 | . 1 . 2 . . 1 . . . . . Swarmer 22 | . . 7 6 6 . 3 . . . . . Grunt 21 | . 4 2 13 . 2 . . . . . . Brawler 2 | . . . 1 . 1 . . . . . . Sentry 5 | . . 1 2 1 1 . . . . . . Hunter 3 | . . . 1 . 2 . . . . . . Programmer 1 | . . . . 1 . . . . . . . Best Kill Streak 10 | 2 2 10 7 3 2 3 . 1 . . . Combat Bots Only 9 | . 2 9 6 3 2 3 . . . . . Max Kills in Single Turn 4 | 1 1 4 2 3 1 2 . 1 . . . Gunslinging . | . . . . . . . . . . . . Exploded 4 | . . 4 2 3 1 . . . . . . Melee . | . . . . . . . . . . . . Uniques/NPCs Destroyed . | . . . . . . . . . . . . Combat | -11 -10 -9 -8 -7 -7 -7 -6 -5 -5 -5 -4 -------- Run | Yrd Mat Mat Mat Fac Gar Fac Fac Fac Upp Upp Fac Hostile Shots Fired 739 | . 17 21 212 42 217 20 . 30 7 28 145 Missed 266 | . 10 6 59 16 83 8 . 10 2 15 57 Hits 473 | . 7 15 153 26 134 12 . 20 5 13 88 Melee 4 | . . . . . 4 . . . . . . Projectile 469 | . 7 15 153 26 130 12 . 20 5 13 88 AOE 2 | . . . . . . . . . . . 2 Critical Strikes 16 | . . 2 5 . 3 . . 2 . . 4 Damage Taken 8115 | . 86 287 2175 408 1837 186 . 426 110 738 1862 Core 2577 | . 31 39 399 49 561 46 . 72 . 224 1156 Absorbed by Shields 168 | . . . 168 . . . . . . . . Regen/Repaired (Parts) 31 | . . . . . . . . 31 . . . Core Remaining (%) 68 | 100 87 90 27 . . 6 100 . . 70 . Volleys Fired 213 | 19 32 14 93 13 25 12 . 4 1 . . Largest 4 | 2 2 2 3 4 4 2 . 1 1 . . Hottest 201 | 70 70 70 120 181 201 78 . 80 7 . . Shots Fired 427 | 33 64 18 191 35 57 24 . 4 1 . . Gun 234 | 33 64 6 57 4 46 24 . . . . . Cannon 164 | . . 3 125 27 9 . . . . . . Launcher 27 | . . 9 9 4 2 . . 3 . . . Special 2 | . . . . . . . . 1 1 . . Kinetic 261 | 19 32 6 153 26 13 12 . . . . . Thermal 63 | 14 32 3 . 5 9 . . . . . . Explosive 21 | . . 9 9 . . . . 3 . . . Electromagnetic 80 | . . . 29 4 35 12 . . . . . Robot Hit Streak 10 | 6 10 5 10 5 8 1 . 5 6 . . Robot Miss Streak 9 | 4 7 2 4 3 4 9 . . . . . Penetration Max 1 | . . . . . 1 1 . . . . . Secondary Targets 1 | . 1 . . . . . . . . . . Max Gunslinging Chain 1 | . 1 . . . . . . . . . . Shots Hit Robots 256 | 20 35 7 109 16 39 11 . 17 1 . 1 Core Hits 133 | 9 14 15 53 14 16 5 . 7 . . . Critical Kills . | . . . . . . . . . . . . Critical Parts Destroyed . | . . . . . . . . . . . . Critical Strikes 9 | . 1 . 4 1 . . . 3 . . . Burn 1 | . 1 . . . . . . . . . . Blast 5 | . . . 4 1 . . . . . . . Sever 3 | . . . . . . . . 3 . . . Melee Attacks 81 | . . . 11 . . 1 . 19 8 40 2 Impact . | . . . . . . . . . . . . Slashing 68 | . . . . . . . . 19 8 40 1 Piercing . | . . . . . . . . . . . . Sneak Attacks 18 | . . . 11 . . . . 7 . . . Combat Hostiles 1 | . . . . . . . . 1 . . . Follow-up Attacks . | . . . . . . . . . . . . Damage Inflicted 6325 | 209 350 536 3019 748 744 176 . 539 . . 4 Guns 1774 | 209 350 . 559 . 480 176 . . . . . Cannons 2400 | . . 17 1735 488 160 . . . . . . Explosions 1767 | . . 512 723 260 104 . . 168 . . . Melee 371 | . . . . . . . . 371 . . . Ramming 13 | . . 7 2 . . . . . . . 4 Kinetic 3095 | 86 177 17 2046 435 203 131 . . . . . Thermal 750 | 123 173 . 78 164 212 . . . . . . Explosive 1325 | . . 512 645 . . . . 168 . . . Electromagnetic 771 | . . . 248 149 329 45 . . . . . Impact . | . . . . . . . . . . . . Slashing 371 | . . . . . . . . 371 . . . Piercing . | . . . . . . . . . . . . Highest Corruption 33 | . . . . 2 10 10 . . . 33 3 Average Corruption 8 | . . . . 2 7 5 . . . 28 2 Corruption Purged 5 | . . . . . . 5 . . . . . Corruption Blocked . | . . . . . . . . . . . . Effects 34 | . . . . 3 12 7 . . . 10 2 Message Errors 8 | . . . . . 4 . . . . 4 . Matter Fused 7 | . . . . 1 3 3 . . . . . Heat Flow Errors 4 | . . . . 1 2 1 . . . . . Energy Discharges 7 | . . . . . 2 2 . . . 2 1 Parts Fused 1 | . . . . . . . . . . . 1 Data Loss (minor) 2 | . . . . . 1 1 . . . . . Data Loss (major) 3 | . . . . 1 . . . . . 2 . Misdirections 2 | . . . . . . . . . . 2 . Overload Shots . | . . . . . . . . . . . . Overflow Damage 135 | . . 14 99 . 2 . . 20 . . . Projectiles 50 | . . . 48 . 2 . . . . . . Explosions 65 | . . 14 51 . . . . . . . . Melee 20 | . . . . . . . . 20 . . . Knockbacks 18 | . . 1 16 1 . . . . . . . Impact . | . . . . . . . . . . . . Kinetic 18 | . . 1 16 1 . . . . . . . Secondary . | . . . . . . . . . . . . Self-Inflicted Damage 491 | . . 102 91 79 108 . . 109 . . 2 Shots 16 | . . 3 3 4 3 . . 3 . . . Rammed 3 | . . . 2 . . . . . . . 1 Targets Rammed 5 | . . 2 2 . . . . . . . 1 Kicked 2 | . . 2 . . . . . . . . . Crushed . | . . . . . . . . . . . . Highest Temperature 326 | 80 124 63 269 234 270 326 4 79 8 . . Average Temperature 78 | 29 40 23 64 100 107 198 2 8 4 . . Received Heat Transfer 1471 | . 48 81 958 12 261 . . . 36 . 75 Effects 1 | . . . . . . 1 . . . . . Interference 1 | . . . . . . 1 . . . . . Siege Activations . | . . . . . . . . . . . . Martial Activations . | . . . . . . . . . . . . Shielding Activations . | . . . . . . . . . . . . Robots Disrupted 1 | . . . . 1 . . . . . . . Combat Hostiles 1 | . . . . 1 . . . . . . . Robots Corrupted . | . . . . . . . . . . . . Combat Hostiles . | . . . . . . . . . . . . Parts Fried 5 | . . . . . 5 . . . . . . Impact Corruptions . | . . . . . . . . . . . . Robots Melted . | . . . . . . . . . . . . Combat Hostiles . | . . . . . . . . . . . . Parts Melted 1 | 1 . . . . . . . . . . . Heat Transferred 1389 | 370 592 . 50 124 253 . . . . . . Parts Sabotaged . | . . . . . . . . . . . . Parts Stolen . | . . . . . . . . . . . . Parts Stripped . | . . . . . . . . . . . . Power Chain Reactions 3 | . . . 1 1 1 . . . . . . Alert | -11 -10 -9 -8 -7 -7 -7 -6 -5 -5 -5 -4 ------- Run | Yrd Mat Mat Mat Fac Gar Fac Fac Fac Upp Upp Fac Maximum Alert Level 1 | . . 1 1 . 1 . . . . . . Low Security (%) 90 | 100 100 85 80 100 53 100 100 100 . . 100 Level 1 9 | . . 14 19 . 46 . . . . . . Level 2 . | . . . . . . . . . . . . Level 3 . | . . . . . . . . . . . . Level 4 . | . . . . . . . . . . . . Level 5 . | . . . . . . . . . . . . High Security . | . . . . . . . . . . . . Max Security . | . . . . . . . . . . . . Peak Influence 287 | 10 50 247 287 139 247 126 25 30 . . 25 Initial 126 | . . 4 87 95 84 126 25 . . . 12 Average 68 | 1 9 37 161 26 175 58 8 4 . . 5 Influence Increases 2487 | 30 108 321 849 287 318 112 . 162 135 60 105 Destroy 0b10 Robot/C 1080 | . 80 200 460 160 120 60 . . . . . Destroy 0b10 Robot/NC 120 | 30 5 5 45 15 . 5 . 15 . . . Destroy Leader 218 | . 22 40 94 40 10 12 . . . . . Successful Hack 29 | . . . . 14 . 5 . 10 . . . Disable Machine 210 | . . 15 165 30 . . . . . . . Anti-Garrison Action 50 | . . . . . 50 . . . . . . Destroy Structure 195 | . 1 61 70 28 3 . . 32 . . . Partial Spotted 90 | . . . . . . 15 . 60 . . 15 Lose Combat Pursuer 495 | . . . 15 . 135 15 . 45 135 60 90 Influence Decreases 2487 | 30 96 126 845 377 197 302 52 162 70 105 125 Entered New Map 445 | . . 8 120 116 37 116 27 . . 13 8 Time Decay 1590 | 30 86 108 595 241 . 176 25 122 70 70 67 Lost Part 442 | . 10 10 130 20 160 10 . 40 . 22 40 Lost Ally 10 | . . . . . . . . . . . 10 Squads Dispatched 15 | . . . 3 3 . 1 . 6 . . 2 Investigation 4 | . . . . 1 . 1 . 1 . . 1 Extermination 6 | . . . . 2 . . . 3 . . 1 Reinforcement 5 | . . . 3 . . . . 2 . . . Assault . | . . . . . . . . . . . . Garrison . | . . . . . . . . . . . . Intercept . | . . . . . . . . . . . . Searches Triggered . | . . . . . . . . . . . . Construction Impeded . | . . . . . . . . . . . . Haulers Reinforced . | . . . . . . . . . . . . Active Scanning Responses . | . . . . . . . . . . . . Cargo Convoy Interrupts . | . . . . . . . . . . . . Stealth | -11 -10 -9 -8 -7 -7 -7 -6 -5 -5 -5 -4 --------- Run | Yrd Mat Mat Mat Fac Gar Fac Fac Fac Upp Upp Fac Distress Signals 4 | . . . 3 . . . . 1 . . . Communications Jammed 16 | . . . . . . . . 16 . . . Distress Signals 16 | . . . . . . . . 16 . . . Times Spotted 148 | . 14 11 40 8 19 6 . 12 9 9 20 Peak Tracking Total 13 | . 4 5 7 3 8 3 . 3 5 5 13 Tactical Retreats 22 | . . . 1 . 6 1 . 4 4 2 4 ECM-based Alert Blocks 1 | . . . . . . . . 1 . . . Traps | -11 -10 -9 -8 -7 -7 -7 -6 -5 -5 -5 -4 ------- Run | Yrd Mat Mat Mat Fac Gar Fac Fac Fac Upp Upp Fac Traps Triggered 5 | . . . . 3 . 1 1 . . . . Indirectly . | . . . . . . . . . . . . Trap Hack Attempts . | . . . . . . . . . . . . Triggered . | . . . . . . . . . . . . Disarmed . | . . . . . . . . . . . . Reprogrammed . | . . . . . . . . . . . . Reused . | . . . . . . . . . . . . Traps Extracted . | . . . . . . . . . . . . Installed . | . . . . . . . . . . . . Triggered . | . . . . . . . . . . . . Machines | -11 -10 -9 -8 -7 -7 -7 -6 -5 -5 -5 -4 ---------- Run | Yrd Mat Mat Mat Fac Gar Fac Fac Fac Upp Upp Fac Machines Disabled 15 | . . 1 11 2 1 . . . . . . Max in Single Turn 2 | . . 1 1 2 1 . . . . . . Garrison Access 2 | . . . . . . . . 2 . . . Garrison Relay 1 | . . . . . 1 . . . . . . Machines Repaired . | . . . . . . . . . . . . Machines Dismantled . | . . . . . . . . . . . . Machines Sabotaged . | . . . . . . . . . . . . Overloaded Fab Kills . | . . . . . . . . . . . . Hacking | -11 -10 -9 -8 -7 -7 -7 -6 -5 -5 -5 -4 --------- Run | Yrd Mat Mat Mat Fac Gar Fac Fac Fac Upp Upp Fac Machines Accessed 23 | . 3 2 1 5 . 2 . 9 . . 1 Terminals 12 | . 2 2 1 1 . 2 . 3 . . 1 Fabricators 3 | . . . . 2 . . . 1 . . . Repair Stations 1 | . . . . . . . . 1 . . . Recycling Units 4 | . 1 . . 1 . . . 2 . . . Scanalyzers . | . . . . . . . . . . . . Garrison Access 3 | . . . . 1 . . . 2 . . . Total Hacks 38 | . 6 3 1 9 . 4 . 14 . . 1 Successful 19 | . 3 1 . 2 . 2 . 11 . . . Failed 19 | . 3 2 1 7 . 2 . 3 . . 1 Catastrophic 3 | . . . . 1 . 1 . . . . 1 Database Lockouts . | . . . . . . . . . . . . Manual 5 | . . . . 1 . 2 . 1 . . 1 Terminals 18 | . 4 3 1 1 . 4 . 4 . . 1 Fabricators 4 | . . . . 3 . . . 1 . . . Repair Stations 3 | . . . . . . . . 3 . . . Recycling Units 5 | . 2 . . 1 . . . 2 . . . Scanalyzers . | . . . . . . . . . . . . Garrison Access 8 | . . . . 4 . . . 4 . . . Terminal Hacks 7 | . 2 1 . . . 2 . 2 . . . Record 1 | . . . . . . . . 1 . . . Open DSF 2 | . . . . . . 1 . 1 . . . Emergency Access Points 1 | . . 1 . . . . . . . . . Alert Level 1 | . . . . . . 1 . . . . . Dispatch Records 1 | . 1 . . . . . . . . . . Zone Layout 1 | . 1 . . . . . . . . . . Fabricator Hacks 2 | . . . . 1 . . . 1 . . . Network Status 2 | . . . . 1 . . . 1 . . . Repair Station Hacks 3 | . . . . . . . . 3 . . . Scan Component 2 | . . . . . . . . 2 . . . Repair 1 | . . . . . . . . 1 . . . Recycling Unit Hacks 2 | . 1 . . . . . . 1 . . . Report Inventory 2 | . 1 . . . . . . 1 . . . Scanalyzer . | . . . . . . . . . . . . Garrison Access Hacks 5 | . . . . 1 . . . 4 . . . Unlock Access 1 | . . . . 1 . . . . . . . Seal Access 2 | . . . . . . . . 2 . . . Coupler Status 2 | . . . . . . . . 2 . . . Unauthorized Hacks . | . . . . . . . . . . . . Terminals . | . . . . . . . . . . . . Fabricators . | . . . . . . . . . . . . Repair Stations . | . . . . . . . . . . . . Recycling Units . | . . . . . . . . . . . . Scanalyzers . | . . . . . . . . . . . . Garrison Access . | . . . . . . . . . . . . Data Cores Recovered 1 | . . . 1 . . . . . . . . Used . | . . . . . . . . . . . . Hacking Detections 12 | . 1 1 . 4 . 2 . 3 . . 1 Full Trace Events 4 | . . . . 1 . 1 . 1 . . 1 Feedback Events . | . . . . . . . . . . . . Feedback Blocked . | . . . . . . . . . . . . Robot Schematics Acquired . | . . . . . . . . . . . . Robots Built . | . . . . . . . . . . . . Authchips . | . . . . . . . . . . . . Time . | . . . . . . . . . . . . Total Robot Build Rating . | . . . . . . . . . . . . Part Schematics Acquired . | . . . . . . . . . . . . Parts Built . | . . . . . . . . . . . . Authchips . | . . . . . . . . . . . . Time . | . . . . . . . . . . . . Total Part Build Rating . | . . . . . . . . . . . . Part Studies Acquired . | . . . . . . . . . . . . Parts Repaired 1 | . . . . . . . . 1 . . . Time 38 | . . . . . . . . 38 . . . Parts Recycled . | . . . . . . . . . . . . Recycled Matter . | . . . . . . . . . . . . Retrieved Matter . | . . . . . . . . . . . . Retrieved Components . | . . . . . . . . . . . . Parts Scanalyzed . | . . . . . . . . . . . . Part Schematics Acquired . | . . . . . . . . . . . . Parts Damaged . | . . . . . . . . . . . . Bothacking | -11 -10 -9 -8 -7 -7 -7 -6 -5 -5 -5 -4 ------------ Run | Yrd Mat Mat Mat Fac Gar Fac Fac Fac Upp Upp Fac Used RIF Installer 1 | . . . . . 1 . . . . . . Robots Hacked 7 | . . . 4 . . 1 . . 1 . 1 Non-combat 5 | . . . 4 . . . . . 1 . . Combat 2 | . . . . . . 1 . . . . 1 Robot Hacks Applied 8 | . . . 5 . . 1 . . 1 . 1 parse_system 5 | . . . 2 . . 1 . . 1 . 1 no_distress 3 | . . . 3 . . . . . . . . Relay Couplers Released 5 | . . . . . 5 . . . . . . Machine Destruction 5 | . . . . . 5 . . . . . . Fabnet Peak Effective % . | . . . . . . . . . . . . Robots Rewired . | . . . . . . . . . . . . Allies Hacked . | . . . . . . . . . . . . Hacks Repelled . | . . . . . . . . . . . . Allies | -11 -10 -9 -8 -7 -7 -7 -6 -5 -5 -5 -4 -------- Run | Yrd Mat Mat Mat Fac Gar Fac Fac Fac Upp Upp Fac Total Allies . | . . . . . . . . . . . . Largest Group . | . . . . . . . . . . . . Highest-Rated Group . | . . . . . . . . . . . . Highest-Rated Ally . | . . . . . . . . . . . . Total Orders . | . . . . . . . . . . . . Ally Attacks . | . . . . . . . . . . . . Total Damage . | . . . . . . . . . . . . Kills . | . . . . . . . . . . . . Allies Corrupted . | . . . . . . . . . . . . Allies Melted . | . . . . . . . . . . . . Intel | -11 -10 -9 -8 -7 -7 -7 -6 -5 -5 -5 -4 ------- Run | Yrd Mat Mat Mat Fac Gar Fac Fac Fac Upp Upp Fac Active Infowar (turns) 6156 | 57 422 701 1558 1436 121 84 98 1104 335 220 20 Optics 1806 | . . . . . . 49 98 1104 335 220 . Sensors 2694 | . . . . 1436 121 . 72 1051 . . 14 IFF 450 | . . . . . . . . . 230 220 . Terrain 2386 | 57 71 700 1558 . . . . . . . . Seismic 1465 | . 351 701 413 . . . . . . . . Jamming 1319 | . . . . . . 35 . 723 335 220 6 ECM 79 | . . . . . . . . 79 . . . Robot Analysis Total . | . . . . . . . . . . . . Derelict Logs Recovered 1 | . . . . . . . . . 1 . . Drone Launches 3 | . . . . . . . . . . . 3 Drone Recoveries 2 | . . . . . . . . . . . 2 Exploration | -11 -10 -9 -8 -7 -7 -7 -6 -5 -5 -5 -4 ------------- Run | Yrd Mat Mat Mat Fac Gar Fac Fac Fac Upp Upp Fac Turns Passed 7585 | 167 439 701 1883 1529 413 374 98 1104 335 248 294 Spaces Moved 6023 | 91 266 339 761 520 259 531 221 1379 892 319 445 Core 843 | 11 . . 22 143 68 259 . . . 57 283 Treads . | . . . . . . . . . . . . Legs 1992 | 80 266 339 739 377 191 . . . . . . Wheels . | . . . . . . . . . . . . Hover 33 | . . . . . . . . . . . 33 Flight 3155 | . . . . . . 272 221 1379 892 262 129 Fastest Speed 24 | 50 120 190 120 130 50 26 26 24 26 26 32 Average Speed 89 | 114 120 190 201 247 109 38 26 24 26 43 56 Slowest Speed 650 | 120 120 190 600 650 200 100 27 27 27 181 272 Overloaded Moves . | . . . . . . . . . . . . Propulsion Burnouts . | . . . . . . . . . . . . Robots Hopped 4 | . . . . . . 3 . 1 . . . Potential Cave-ins 41 | . . . . . . . . 1 2 38 . Cave-ins Triggered 2 | . . . . . . . . . . 2 . Exploration Rate (%) 26 | 4 38 22 47 13 34 11 6 28 80 25 15 Regions Visited 11 Branch Regions 2 Pre-discovered Areas . | . . . . . . . . . . . . Known Exits Taken 4 | . . . . 1 . . 1 1 1 . . Unknown Exits Taken 6 | 1 1 1 1 . . 1 . . . 1 . Scrap Searched 2 | . . . . . . . . . 2 . . Spaces Dug 59 | . . 9 5 . . . . . 5 40 . Terrain Destroyed 257 | . . 82 82 26 3 1 . 18 5 40 . Melee 45 | . . . . . . . . . 5 40 . Projectile 32 | . . . 26 5 . 1 . . . . . AOE 180 | . . 82 56 21 3 . . 18 . . . Terrain Rammed . | . . . . . . . . . . . . Walls Destroyed . | . . . . . . . . . . . . Machines Disabled . | . . . . . . . . . . . . Actions | -11 -10 -9 -8 -7 -7 -7 -6 -5 -5 -5 -4 --------- Run | Yrd Mat Mat Mat Fac Gar Fac Fac Fac Upp Upp Fac Total 7693 | 121 329 378 928 732 336 670 262 2107 978 368 484 Wait 1060 | . 16 10 15 161 38 70 1 671 73 . 5 Move 6001 | 90 265 338 760 519 257 524 220 1376 891 316 445 Hop 4 | . . . . . . 3 . 1 . . . Pick Up 72 | 5 9 6 14 8 1 9 6 10 1 . 3 Fast Attach 71 | 7 . . 5 14 8 14 3 5 . . 15 Attach 43 | . 1 3 10 4 2 4 2 5 2 3 7 Detach 10 | . . . . . . 2 . 2 . 3 3 Swap 35 | . 2 2 5 5 1 7 5 2 2 3 1 Drop 66 | . 4 3 13 8 4 9 10 12 . 1 2 Fire 213 | 19 32 14 93 13 25 12 . 4 1 . . Melee 81 | . . . 11 . . 1 . 19 8 40 2 Ram 3 | . . . 2 . . . . . . . 1 Kick 2 | . . 2 . . . . . . . . . Crush . | . . . . . . . . . . . . Escape Stasis 32 | . . . . . . 15 15 . . 2 . Rewire . | . . . . . . . . . . . . Trap . | . . . . . . . . . . . . Miscellaneous . | . . . . . . . . . . . . Route ------- -11/Scrapyard -10/Materials -9/Materials -8/Materials -7/Factory (discovered 2 exits: *Sto / Gar) -7/Garrison -7/Factory -6/Factory -5/Factory -5/Upper Caves -5/Upper Caves -4/Factory (discovered 1 exit: Res) History --------- Turn | Location | Event 34 | -11/Scrapyard | Discovered new exit (range 16) 168 | -11/Scrapyard | Entered Materials 315 | -10/Materials | Build established: Mutant 588 | -10/Materials | Discovered new exit (range 16) 607 | -10/Materials | Entered another Materials area 607 | -9/Materials | Evolved 2 slots: Utility x2 1232 | -9/Materials | Destroyed 9 combat bots 1276 | -9/Materials | Discovered new exit (range 14) 1308 | -9/Materials | Entered another Materials area 1308 | -8/Materials | Evolved 2 slots: Propulsion x1, Weapon x1 1734 | -8/Materials | Build established: Skirmisher 2097 | -8/Materials | Build established: Mutant 2812 | -8/Materials | Core integrity fell below 50% 2875 | -8/Materials | Lost 3 parts (1n1u1w) 2973 | -8/Materials | Lost 3 parts (1n1u1w) 2977 | -8/Materials | Discovered new exit (range 9) 3191 | -8/Materials | Entered Factory 3191 | -7/Factory | Evolved 2 slots: Propulsion x1, Weapon x1 3232 | -7/Factory | Build established: Gunner 3572 | -7/Factory | Build established: Skirmisher 4604 | -7/Factory | Discovered new exit (range 11) 4617 | -7/Factory | Identified exit to Storage 4719 | -7/Factory | Identified exit to Garrison 4720 | -7/Factory | Entered Garrison 4762 | -7/Garrison | Triggered checkpoint 4842 | -7/Garrison | System corruption reached 10% 4846 | -7/Garrison | Garrison Relay disabled 4872 | -7/Garrison | Lost 4 parts (1n1u2w) 4955 | -7/Garrison | Lost 3 parts (1n2w) 5038 | -7/Garrison | Triggered checkpoint 5100 | -7/Garrison | Core integrity fell below 50% 5122 | -7/Garrison | Installed Relay Interface Framework 5126 | -7/Garrison | Core integrity fell below 20% 5129 | -7/Garrison | Discovered new exit (range 8) 5130 | -7/Garrison | Lost 8 parts (1p2n2u3w) 5132 | -7/Garrison | Identified exit to Factory 5133 | -7/Garrison | Entered Factory 5499 | -7/Factory | Discovered new exit (range 18) 5507 | -7/Factory | Entered another Factory area 5507 | -6/Factory | Evolved 2 slots: Power x1, Utility x1 5603 | -6/Factory | Discovered new exit (range 8) 5605 | -6/Factory | Identified exit to Factory 5605 | -6/Factory | Entered another Factory area 5605 | -5/Factory | Evolved 2 slots: Propulsion x1, Utility x1 5900 | -5/Factory | Build established: Ninja 5913 | -5/Factory | Identified exit to DSF 5927 | -5/Factory | Found Prototype Launcher 5927 | -5/Factory | Identified Mni. Smartbomb Launcher 5929 | -5/Factory | Found Mni. Smartbomb Launcher 5975 | -5/Factory | Repaired Blade Saw 6566 | -5/Factory | Build established: Infiltrator-Ninja 6687 | -5/Factory | Lost 4 parts (1p1n2u) 6706 | -5/Factory | Discovered new exit (range 8) 6708 | -5/Factory | Identified exit to Upper Caves 6709 | -5/Factory | Entered Upper Caves 6724 | -5/Upper Caves | Encountered a Warlord checkpoint 6727 | -5/Upper Caves | Learned location of 1 exit from Factory 6969 | -5/Upper Caves | Attracted the attention of an 0b10 checkpoint 6970 | -5/Upper Caves | Build established: Sprinter 7021 | -5/Upper Caves | Discovered new exit (range 15) 7026 | -5/Upper Caves | Identified exit to Upper Caves 7044 | -5/Upper Caves | Entered another Upper Caves area 7131 | -5/Upper Caves | Crushed by falling debris 7132 | -5/Upper Caves | System corruption reached 10% 7162 | -5/Upper Caves | Lost 3 parts (1n2u) 7166 | -5/Upper Caves | Crushed by falling debris 7167 | -5/Upper Caves | System corruption reached 30% 7197 | -5/Upper Caves | Lost 5 parts (3n1u1w) 7264 | -5/Upper Caves | Released all parts (7) 7286 | -5/Upper Caves | Discovered new exit (range 12) 7292 | -5/Upper Caves | Entered Factory 7292 | -4/Factory | Evolved 2 slots: Utility x2 7293 | -4/Factory | Identified exit to Research 7464 | -4/Factory | Core integrity fell below 50% 7465 | -4/Factory | Build established: Mutant 7483 | -4/Factory | Core integrity fell below 20% 7512 | -4/Factory | Lost 5 parts (4n1w) 7586 | -4/Factory | Destroyed by P-70 Sage with High-powered Shock Rifle Last Messages --------------- [Achievement: Slippery One] 07537_ Mini Drone retrieved by Mni. Drone Bay (no repairs). 07539_ Chain reaction triggered in Lgt. Ion Engine. 07539_ Mini Drone destroyed. 07541_ Mini Drone retrieved by Mni. Drone Bay (repair cost: 2). 07547_ Lgt. Antimatter Reactor destroyed. 07549_ Connecting with Scanalyzer... 07559_ Nuclear Reactor explodes. 07559_ Mni. Drone Bay destroyed. 07561_ System corrupted: Adv. EM Disruption Field fused. 07564_ Acquired Lgt. Antimatter Reactor. 07572_ Acquired Adv. Sensor Array. 07574_ Acquired Shock Absorption System. 07584_ System corrupted: Energy discharge (-30). 07584_ Acquired Imp. Remote Shield. Map ----- +----------------------------------------------------+ | ?????????????????????# # """ """ #????????? | | ?????????????????????# + """ """ #????????? | | ????????????????????## # """ """ #????????? | | ????????????????????#T # #????????? | | ????????????????????## # """ """ #????????? | | ?????????????????????# # """ """ #????????? | | ???????????????#?????# # """ """ #????????? | | ???????????????# ????# # #????????? | | ?????????????### ##### # #????????? | | ???????? " #????????? | | ????????######## # "% #????????? | | ????????# """###########????????? | | ????????# # # #????????????? | | ????????# # """ #????????????? | | ????????# # ""R" !#????????????? | | ????????# """ + "" " #????????????? | | ????????# """ # ?????????????? | | ????????# """ # """ ! #????????????? | | ????????# #* """ #????????????? | | ????????# # """ #????????????? | | ????????# "" "" # # ??? ?????????????? | | ????????# ""S"" + ####????#?????????????? | | ????????# """" #####p#####?????????????????? | | ????????############## #?????????????????? | | ?????????????????????# ! #?????????????????? | | ?????????????????????# @ #?????????????????? | | ?????????????????????# ! #?????????????????? | | ?????????????????????###########?????????????????? | | | | | | | | | | | | | | | | | | | | | | | | | | | | | | | | | | | | | | | | | | | | | +----------------------------------------------------+ Best States ------------- Heat Dissipation 43 Energy Generation 34 Energy Capacity 510 Matter Stores 324 Matter Capacity 450 Sight Range 18 Robot Scan Range 16 Terrain Scan Range 16 Terrain Scan Density 10 ECM Strength 2 Jamming Range 16 Additional Mass Support 6 Armor Coverage 225 Resistance: EX 25 Evasion (%) 65 Offensive Hacking 12 Defensive Hacking 10 Item Schematics ----------------- None Robot Schematics ------------------ None Fabricated ------------ Nothing Repaired ---------- Blade Saw | 22% | -5/Factory Studied --------- None Alien Tech Used ----------------- None Achievements -------------- Can't Catch Me Ew, Corruption I Spy Join The Dark Side Slippery One This Is My Hole Challenges ------------ None Game ------ Seed DiametricPointySource Manual? 0 Play Time 01:45:18 Cumulative 16.6 hours Start 2025.11.18 @ 20:24:50 End 2025.11.20 @ 15:21:57 Sessions 7 Manual Loads 0 Difficulty Rogue Special Mode None Game No. 12 Rogue 3 Adventurer 8 Explorer 1 Win Type - Total 0 Types 0/0/0/0/0/0/0/0/0/0 Lore% 4 Gallery% 20 Achievement% 16 Wizard Run 0 Options --------- Layout 1 ASCII 0 Keyboard 0 Movement Numpad Keybinds 0 Fullscreen 1 Font 32/SmallcapsGlow Map View 50x35 Zoom Use 0% Tactical HUD 1 Map Filters NONE Filters NONE Steam 1 RUN: eb185d8e-2d7f-4f40-8d86-6cee8d54ea88